[Event "SVK ECo-C Extraliga 2021-22"]
[Site "Slovakia"]
[Date "2022.06.11"]
[Round "10"]
[White "Plat, Vojtech"]
[Black "Druska Juraj"]
[Result "1-0"]
[ECO "C01"]
[WhiteElo "2547"]
[BlackElo "2523"]
[Annotator "TA"]
[PlyCount "91"]
[EventDate "2021.10.21"]
[EventType "team-tourn"]
[EventCountry "SVK"]
[SourceTitle "playchess.com"]
[Source "ChessBase"]
[SourceQuality "1"]
[TimeControl "40/5400+30:1800+30"]

{[%evp 15,91,-8,0,-18,4,0,-6,0,0,0,0,0,0,6,23,11,37,0,0,-37,-31,-41,-35,-141,-79,-89,-12,-11,-5,-6,-2,0,0,-24,-50,-29,75,84,84,85,116,97,91,92,129,143,135,139,160,155,184,172,218,223,241,244,327,330,384,359,494,485,490,483,604,588,686,680,761,759,2632,2410,1931,2057,5189,5089,2159,2083]} 1. e4 {[%emt 0:00:06]} e6 {[%emt 0:05:45]} 2. d4 {[%emt 0:00:09]} d5 {[%emt 0:00:07]} 3. exd5 {[%emt 0:00:08]} exd5 {[%emt 0:00:06]} 4. Bd3 {[%emt 0:00:05]} c5 {[%emt 0:03:04]} 5. Qe2+ {[%emt 0:00:42]} Be7 {[%emt 0:08:21]} 6. dxc5 {[%emt 0:02:39]} Nf6 {[%emt 0:00:09]} 7. Nf3 {[%emt 0:10:11]} O-O {[%emt 0:00:16]} 8. O-O {[%emt 0:00:41]} Bxc5 {[%emt 0:04:33]} 9. Bg5 {[%emt 0:00:07] C01: French: Exchange Variation.} Bg4 {[%emt 0:02:08]} (9... h6 $5 {[%cal Rh6g5]} 10. Bxf6 Qxf6 $11) 10. h3 {[%emt 0:07:31]} Bh5 {[%emt 0:00:23]} 11. g4 {[%emt 0:05:10] The position is equal.} Bg6 {[%emt 0:00:27]} 12. Bxg6 {[%emt 0:01:52]} hxg6 {[%emt 0:32:50]} 13. Nc3 {[%emt 0:02:31] [#]} Nc6 $146 {[%emt 0:01:59]} ({Predecessor:} 13... Qd6 14. Qe5 Qxe5 15. Nxe5 Bd4 16. Rfe1 Bxc3 17. bxc3 Ne4 18. Bc1 Nxc3 19. Nf3 Nc6 {0-1 (71) Bauch,S (1930)-Karmainski,A (2102) Ruhrgebiet 2017}) 14. Rad1 {[%emt 0:09:06][%cal Od1d5] Black must now prevent Rxd5!} (14. Na4 $5 {[%cal Ra4c5]} b6 15. Rad1 $11) 14... Qd6 {[%emt 0:11:59]} 15. Kg2 {[%emt 0:03:57] Prevents Qg3+.} Rfe8 {[%emt 0:00:55]} 16. Qb5 {[%emt 0:03:10]} a6 {[%emt 0:02:53]} 17. Qb3 {[%emt 0:06:18]} (17. Qxb7 $2 Na5 18. Bf4 Qxf4 $19) 17... d4 $1 {[%emt 0:00:12]} 18. Bxf6 {[%emt 0:03:49]} ({Avoid the trap} 18. Qxb7 $2 Na5 19. Nb5 axb5 20. Qxb5 Reb8 $19) 18... gxf6 {[%emt 0:02:16]} 19. Nb1 {[%emt 0:00:15] [#]} (19. Qd5 $15) 19... b5 {[%emt 0:03:10]} (19... Nd8 $142 $1 {Strongly threatening ...Ne6.} 20. Nc3 Ne6) 20. Nbd2 $17 {[%emt 0:01:39]} Re2 {[%emt 0:01:07]} ({Black should play} 20... Nb4 $17 {Threatens to win with ...Nd5.} 21. Rfe1 Qc6) 21. Rfe1 $11 {[%emt 0:03:41]} Rae8 {[%emt 0:00:10]} 22. Rxe2 $40 {[%emt 0:02:16][%mdl 128] White attacks.} Rxe2 {[%emt 0:00:07]} 23. Qd3 {[%emt 0:02:04]} Qe7 {[%emt 0:04:09]} 24. Qxe2 {[%emt 0:02:58]} Qxe2 {[%emt 0:00:02]} 25. Re1 {[%emt 0:00:03] [#]} d3 {[%emt 0:10:10]} (25... Qe6 $1 $11 {keeps the balance.} 26. Rxe6 fxe6) 26. Rxe2 $16 {[%emt 0:00:04] White stays focused until the end.} dxe2 {[%emt 0:00:02][%mdl 4096] Endgame KBN-KNN} 27. Ne1 {[%emt 0:02:08]} b4 {[%emt 0:00:40]} 28. c3 {[%emt 0:06:41] Prevents Bd4.} bxc3 {[%emt 0:01:16]} 29. bxc3 {[%emt 0:00:04]} Ne5 {[%emt 0:03:10]} 30. Ne4 {[%emt 0:01:40][%csl LRc5,LRf6]} Be7 {[%emt 0:00:17]} 31. Ng3 {[%emt 0:00:05]} Nc4 {[%emt 0:02:20]} 32. Kf3 {[%emt 0:02:33]} ({Resist} 32. Nxe2 Kg7 33. Nc2 Bd6 $16) 32... Bc5 {[%emt 0:00:53]} 33. Kxe2 {[%emt 0:01:46]} Nd6 {[%emt 0:00:23]} (33... Kg7 {was necessary.} 34. Nc2 a5) 34. Nd3 $18 {[%emt 0:00:05]} Bb6 {[%emt 0:00:07]} 35. Nb4 {[%emt 0:00:42]} Kg7 {[%emt 0:00:58]} 36. Nxa6 {[%emt 0:00:47]} Nb5 {[%emt 0:00:30]} 37. Ne4 {[%emt 0:00:04]} f5 {[%emt 0:00:05]} 38. gxf5 {[%emt 0:00:03] White is clearly winning.} gxf5 {[%emt 0:00:03]} 39. a4 {[%emt 0:00:12][%cal Ba2a4,Ba4a5][%mdl 32]} Na3 {[%emt 0:01:19]} 40. Nd2 {[%emt 0:02:28]} Kf6 {[%emt 0:00:16]} 41. Nb4 {[%emt 0:30:08] Nd5+ is the strong threat.} Ke5 {[%emt 0:02:18] Inhibits Nd5.} 42. a5 {[%emt 0:00:00]} Bc5 {[%emt 0:03:57]} 43. Nd3+ {[%emt 0:00:00]} Kd6 {[%emt 0:00:05]} 44. Nxc5 {[%emt 0:00:00]} Kxc5 {[%emt 0:00:04]} 45. h4 {[%emt 0:00:00] h5 would kill now.} Nb5 {[%emt 0:00:04]} 46. Kd3 {[%emt 0:00:00] Weighted Error Value: White=0.10 (very precise) /Black=0.35} 1-0

[Event "SVK ECo-C Extraliga 2021-22"]
[Site "Slovakia"]
[Date "2022.06.11"]
[Round "10"]
[White "Mihok, Oliver"]
[Black "Gazik, Viktor"]
[Result "1-0"]
[ECO "B69"]
[WhiteElo "2539"]
[BlackElo "2549"]
[Annotator "TA"]
[PlyCount "85"]
[EventDate "2021.10.21"]
[EventType "team-tourn"]
[EventCountry "SVK"]
[SourceTitle "playchess.com"]
[Source "ChessBase"]
[SourceQuality "1"]
[TimeControl "40/5400+30:1800+30"]

{[%evp 22,85,41,56,45,16,7,7,24,0,8,0,0,0,0,0,11,25,29,22,41,34,28,18,108,52,37,0,75,91,86,64,78,79,156,156,139,165,197,187,191,193,346,304,649,616,581,207,191,201,179,187,188,197,197,200,235,213,360,362,864,134,885,858,833,810]} 1. e4 {[%emt 0:00:05]} c5 {[%emt 0:00:09]} 2. Nf3 {[%emt 0:00:04]} d6 {[%emt 0:00:13]} 3. d4 {[%emt 0:00:05]} cxd4 {[%emt 0:00:06]} 4. Nxd4 {[%emt 0:00:04]} Nf6 {[%emt 0:00:06]} 5. Nc3 {[%emt 0:00:03]} Nc6 {[%emt 0:00:06]} 6. Bg5 {[%emt 0:01:43]} e6 {[%emt 0:00:07]} 7. Qd2 {[%emt 0:02:23]} a6 {[%emt 0:00:07]} 8. O-O-O {[%emt 0:00:46]} Bd7 {[%emt 0:00:06]} 9. f4 {[%emt 0:01:07][%cal Bf2f4,Bf4f5][%mdl 32]} Be7 {[%emt 0:04:04]} 10. Nf3 {[%emt 0:00:45]} b5 {[%emt 0:00:27]} 11. Bxf6 {[%emt 0:00:15]} gxf6 {[%emt 0:00:05]} 12. f5 {[%emt 0:00:55]} h5 {[%emt 0:09:57] B69: Sicilian: Richter-Rauzer: 7...a6 8 0-0-0 Bd7 9 f4 Be7 10 Nf3 b5 11 Bxf6.} 13. g3 {[%emt 0:09:49]} Rc8 {[%emt 0:17:32]} 14. Kb1 {[%emt 0:06:58]} Qa5 {[%emt 0:08:50] The position is equal.} 15. fxe6 {[%emt 0:06:35]} fxe6 {[%emt 0:01:06]} 16. Bh3 {[%emt 0:01:11]} Ne5 {[%emt 0:18:39]} 17. Nxe5 {[%emt 0:03:20]} fxe5 {[%emt 0:00:07]} 18. Rhf1 {[%emt 0:02:07]} b4 {[%emt 0:09:20]} 19. Ne2 {[%emt 0:00:17][%cal Bc3e2,Be2c1,Bc1d3][%mdl 32]} Qc5 {[%emt 0:08:00]} 20. Nc1 $40 {[%emt 0:02:07][%mdl 128] White has some attack.} a5 {[%emt 0:03:31]} 21. Nd3 {[%emt 0:00:57]} Qd4 {[%emt 0:00:08]} 22. Qe2 {[%emt 0:01:47] [#]} Qc4 $146 {[%emt 0:00:16]} (22... a4 $11) ({Predecessor:} 22... a4 23. Nf4 Qc4 24. Qxc4 Rxc4 25. Nxe6 Bxe6 26. Bxe6 Rxe4 27. Rf2 Rf8 28. Rfd2 a3 29. bxa3 bxa3 {0-1 (42) Eynullayev,A (2246)-Gabrielian,A (2465) Moscow 2020}) 23. Rf2 {[%emt 0:01:46]} (23. Qf2 $6 Kd8 $11) ({Better is} 23. b3 $1 $16 {[%cal Rb3c4]} Qb5 24. Qg2) 23... a4 $14 {[%emt 0:04:40]} 24. Qf3 {[%emt 0:09:52][%cal Od3e5] aiming for Nxe5!} (24. b3 $5 {[%cal Rb3c4]} Qc3 25. bxa4 $11 (25. Qf3 Kd8 $11)) 24... Rh7 {[%emt 0:00:54]} (24... Kd8 $11 {remains equal.}) 25. Bf1 $16 {[%emt 0:05:14][%cal Od3e5] And now Nxe5! would win. White leaves nothing to chance now.} b3 {[%emt 0:03:48]} 26. cxb3 {[%emt 0:02:31]} axb3 {[%emt 0:00:02]} 27. a3 {[%emt 0:00:47]} ({Don't go for} 27. Nxe5 $2 Qc2+ $3 {[%mdl 512]} 28. Rxc2 bxc2+ 29. Kc1 Bg5+ 30. Qf4 Bxf4+ 31. gxf4 cxd1=Q+ $19) 27... Bc6 {[%emt 0:03:41]} ({Black should try} 27... Qc2+ 28. Rxc2 bxc2+ 29. Ka2 cxd1=N) 28. Re1 $1 {[%emt 0:02:57]} ({Don't take} 28. Rc1 $6 Qd4 $14) 28... Qd4 {[%emt 0:00:43] [#]} 29. Nb4 $1 {[%emt 0:01:05]} Bb7 {[%emt 0:01:59]} 30. Bb5+ {[%emt 0:03:26]} Kd8 {[%emt 0:00:01]} 31. Rfe2 {[%emt 0:00:32]} Bg5 $2 {[%emt 0:06:30]} (31... d5) 32. Qxb3 {[%emt 0:02:49]} Bd2 $2 {[%emt 0:00:20]} (32... Ke7 33. Rd1 Qc5) 33. Rd1 $18 {[%emt 0:04:58]} Bxe4+ {[%emt 0:00:02] [#]} 34. Ka2 $2 {[%emt 0:01:28]} (34. Rxe4 $1 {[%mdl 512]} Qxe4+ 35. Bd3) 34... Qxb4 {[%emt 0:00:32]} 35. axb4 {[%emt 0:00:40] Chess con chili.} Ra7+ {[%emt 0:01:14] [#]} 36. Qa4 $3 {[%emt 0:02:06]} Bd5+ {[%emt 0:00:22] This bishop pair is nice.} 37. Ka3 $1 {[%emt 0:00:33]} Rxa4+ {[%emt 0:00:13]} 38. Bxa4 {[%emt 0:00:05]} Bg5 {[%emt 0:00:45]} 39. Rf2 {[%emt 0:00:53]} Be3 {[%emt 0:00:39]} (39... Kc7 {was worth a try.} 40. Rc2+ Kb7 41. Rxc8 Kxc8) 40. Rf7 {[%emt 0:00:32] Strongly threatening Rdf1.} Rc7 $2 {[%emt 0:00:32]} (40... Rc4 41. Rdf1 Kc8 42. Bd7+ Kb8) 41. Rf8+ {[%emt 0:30:36]} Ke7 {[%emt 0:30:07]} 42. Rdf1 {[%emt 0:00:05][%csl Gf8][%cal Rf1f7]} Bf4 {[%emt 0:00:00]} 43. Re8+ {[%emt 0:00:00] Weighted Error Value: White=0.20 (precise) /Black=0.43} ({Not} 43. gxf4 Kxf8 44. fxe5+ Ke7 $14) 1-0

[Event "SVK ECo-C Extraliga 2021-22"]
[Site "Slovakia"]
[Date "2022.06.11"]
[Round "10"]
[White "Kozak, Adam"]
[Black "Mrva, Martin"]
[Result "1-0"]
[ECO "B07"]
[WhiteElo "2532"]
[BlackElo "2384"]
[Annotator "TA"]
[PlyCount "61"]
[EventDate "2021.10.21"]
[EventType "team-tourn"]
[EventCountry "SVK"]
[SourceTitle "playchess.com"]
[Source "ChessBase"]
[SourceQuality "1"]
[TimeControl "40/5400+30:1800+30"]

{[%evp 9,61,68,98,91,98,93,104,100,84,81,143,127,144,86,148,145,154,157,143,147,144,153,151,153,169,165,182,189,308,303,298,302,362,350,414,376,521,515,519,475,600,606,660,637,656,689,771,777,778,784,784,784,783,755]} 1. e4 {[%emt 1:31:00]} d6 {[%emt 1:31:00]} 2. d4 {[%emt 0:00:30]} a6 {[%emt 0:00:30]} 3. f4 {[%emt 0:00:30]} c5 {[%emt 0:00:30]} 4. dxc5 {[%emt 0:00:30]} Qa5+ {[%emt 0:00:30]} 5. Nc3 {[%emt 0:00:30] [#]} dxc5 $146 {[%emt 0:00:30]} ({Predecessor:} 5... Qxc5 6. Nf3 Bg4 7. h3 Bxf3 8. Qxf3 Nc6 9. Bd3 Nf6 10. Be3 Qa5 11. O-O e6 {0-1 (43) Ajrapetian,G (2434)-Dmitriev,I (2369) Voronezh 2010}) 6. Nf3 {[%emt 0:00:30] B07: Pirc Defence: Miscellaneous Systems.} Nf6 {[%emt 0:00:30][%cal Bg8f6,Bf6d5,Bd5c3][%mdl 32]} 7. Bd2 {[%emt 0:00:30] Hoping for e5.} Qd8 {[%emt 0:00:30]} 8. e5 {[%emt 0:00:30] White is better.} Nd5 {[%emt 0:00:30]} 9. Bd3 {[%emt 0:00:30] Prevents Bf5.} g6 {[%emt 0:00:30]} ({Black should play} 9... e6) 10. Be4 {[%emt 0:00:30]} e6 {[%emt 0:00:30]} 11. O-O {[%emt 0:00:30]} (11. Qe2 $142) 11... Nc6 {[%emt 0:00:30]} (11... Nxc3 $142 12. Bxc3 Qxd1 13. Rfxd1 (13. Raxd1 Ra7 $16) 13... Nc6 14. Bxc6+ bxc6) 12. Be1 $16 {[%emt 0:00:30]} Nxc3 {[%emt 0:00:30]} 13. Bxc6+ {[%emt 0:00:30]} (13. Bxc3 Qc7 $16) (13. bxc3 Bd7 $16) 13... bxc6 {[%emt 0:00:30]} 14. Qxd8+ {[%emt 0:00:30]} ({Much less strong is} 14. bxc3 Qxd1 15. Rxd1 Be7 $14) 14... Kxd8 {[%emt 0:00:30]} 15. Bxc3 {[%emt 0:00:30]} a5 {[%emt 0:00:30]} 16. Rfd1+ {[%emt 0:00:30]} Kc7 {[%emt 0:00:30]} 17. a4 {[%emt 0:00:30]} Rg8 {[%emt 0:00:30]} 18. Nd2 {[%emt 0:00:30][%cal Bf3d2,Bd2c4,Bc4a5][%mdl 32]} g5 {[%emt 0:00:30]} (18... Kb8 $142 19. Nc4 Be7 20. Nxa5 (20. Bxa5 Ba6 $18) 20... Kc7) 19. fxg5 $18 {[%emt 0:00:30]} Rxg5 {[%emt 0:00:30]} 20. Nc4 {[%emt 0:00:30]} Rg4 {[%emt 0:00:30] [#]} 21. b3 {[%emt 0:00:30]} ({Not} 21. Nxa5 h5 22. h3 Re4 $16) ({Inferior is} 21. Bxa5+ Kb8 22. b3 (22. Ne3 Re4 $11) 22... Rxc4 23. bxc4 Rxa5 $11) 21... Bh6 {[%emt 0:00:30]} 22. Rf1 {[%emt 0:00:30]} Rg7 {[%emt 0:00:30]} 23. Rad1 {[%emt 0:00:30] White is clearly winning.} Bg5 {[%emt 0:00:30]} 24. Bxa5+ {[%emt 0:00:30]} Rxa5 {[%emt 0:00:30]} 25. Nxa5 {[%emt 0:00:30]} Be3+ {[%emt 0:00:30]} 26. Kh1 {[%emt 0:00:30]} Bd4 {[%emt 0:00:30]} 27. Nc4 {[%emt 0:00:30]} Ba6 {[%emt 0:00:30]} 28. Rde1 {[%emt 0:00:30]} Bxc4 {[%emt 0:00:30]} 29. bxc4 {[%emt 0:00:30]} Kb6 {[%emt 0:00:30]} 30. Rf3 {[%emt 0:00:30]} Ka5 {[%emt 0:00:30]} 31. c3 {[%emt 0:00:30] Weighted Error Value: White=0.05 (flawless) /Black=0.40} 1-0

[Event "SVK ECo-C Extraliga 2021-22"]
[Site "Slovakia"]
[Date "2022.06.11"]
[Round "10"]
[White "Kozak, Adam"]
[Black "Jablonicky, Martin"]
[Result "1-0"]
[ECO "E60"]
[WhiteElo "2532"]
[BlackElo "2377"]
[Annotator "TA"]
[PlyCount "117"]
[EventDate "2021.10.21"]
[EventType "team-tourn"]
[EventCountry "SVK"]
[SourceTitle "playchess.com"]
[Source "ChessBase"]
[SourceQuality "1"]
[TimeControl "40/5400+30:1800+30"]

{[%evp 23,117,31,40,36,38,38,45,44,49,41,44,45,46,40,40,39,47,41,54,29,57,40,50,27,54,44,72,59,77,77,76,76,77,77,77,77,92,25,25,25,25,27,35,25,20,28,173,61,137,68,100,20,20,20,20,20,68,20,20,0,69,70,70,77,77,77,70,77,79,79,79,79,79,90,29968,29964,29971,29972,29974,29974,29973,29973,29975,29976,29975,29977,29976,29979,29979,29980,29978,29981,29981,29982,29982,29983]} 1. Nf3 {[%emt 0:00:14]} Nf6 {[%emt 0:00:05]} 2. g3 {[%emt 0:01:10]} g6 {[%emt 0:00:06]} 3. b3 {[%emt 0:00:08]} Bg7 {[%emt 0:00:11]} 4. Bb2 {[%emt 0:00:09]} O-O {[%emt 0:03:09]} 5. Bg2 {[%emt 0:00:24]} d6 {[%emt 0:00:32]} 6. d4 {[%emt 0:00:09]} c5 {[%emt 0:00:05]} 7. c4 {[%emt 0:00:49]} Qa5+ {[%emt 0:00:06]} 8. Bc3 {[%emt 0:06:47]} Qc7 {[%emt 0:00:06]} 9. Nbd2 {[%emt 0:02:25]} cxd4 {[%emt 0:00:36]} 10. Nxd4 {[%emt 0:03:01]} Nc6 {[%emt 0:00:12]} 11. O-O {[%emt 0:02:38]} Nxd4 {[%emt 0:00:54]} 12. Bxd4 {[%emt 0:00:11]} Bd7 {[%emt 0:00:40] [#]} 13. Nb1 $146 {[%emt 0:15:10] E60: King's Indian: Unusual lines and Fianchetto Variation without Nc3.} ({Predecessor:} 13. Rc1 Bc6 14. e4 Nd7 15. Be3 Qa5 16. Qc2 Rfc8 17. Nf3 Nc5 18. Nd4 Bd7 19. Qe2 a6 20. Rc2 b5 {1-0 (46) Lai,H (2459)-Pel,B (2281) Bruges 2018}) 13... Bc6 {[%emt 0:09:47]} 14. Nc3 {[%emt 0:01:30]} Bxg2 {[%emt 0:01:03]} 15. Kxg2 {[%emt 0:00:15] White is slightly better.} Qa5 {[%emt 0:16:37] Threatens to win with ...e5.} 16. Rc1 {[%emt 0:03:37]} Rfe8 {[%emt 0:02:48]} 17. a4 {[%emt 0:06:43]} Rac8 {[%emt 0:03:34]} 18. Qd3 {[%emt 0:06:08]} a6 {[%emt 0:02:11]} 19. Rfd1 {[%emt 0:02:07]} h5 {[%emt 0:05:00]} 20. Qd2 {[%emt 0:04:55]} h4 {[%emt 0:06:37]} 21. f3 {[%emt 0:12:11]} Kh7 {[%emt 0:11:33]} 22. g4 {[%emt 0:05:41]} Bh6 {[%emt 0:03:10]} 23. Be3 {[%emt 0:00:20]} Bxe3 {[%emt 0:00:09]} 24. Qxe3 {[%emt 0:00:07]} Kg7 {[%emt 0:02:16]} 25. Nd5 {[%emt 0:03:47]} Nxd5 {[%emt 0:02:59]} 26. Rxd5 {[%emt 0:00:11]} Rc5 {[%emt 0:00:06]} 27. Rxc5 {[%emt 0:00:20] White is more active.} Qxc5 {[%emt 0:00:07]} 28. Qxc5 {[%emt 0:00:07]} dxc5 $16 {[%emt 0:00:04][%mdl 4096] Endgame KR-KR} 29. Rd1 {[%emt 0:00:07] Prevents Rd8.} b5 {[%emt 0:02:05]} 30. axb5 {[%emt 0:12:02]} ({Don't play} 30. cxb5 axb5 31. g5 (31. axb5 Rb8 $11) 31... bxa4 32. bxa4 Ra8 $11) (30. Rd5 $1 $16) 30... axb5 $11 {[%emt 0:00:12]} 31. Rd5 {[%emt 0:00:03]} bxc4 {[%emt 0:00:14]} 32. bxc4 {[%emt 0:00:04]} Rc8 {[%emt 0:04:21]} 33. Kh3 {[%emt 0:01:35]} e6 {[%emt 0:01:00]} 34. Re5 {[%emt 0:00:16]} Ra8 {[%emt 0:02:57]} (34... Kf6 $11 {and Black stays safe.} 35. f4 Ke7) 35. Kxh4 {[%emt 0:07:13]} (35. Rxc5 $18 Ra2 36. Kxh4) 35... Ra2 {[%emt 0:00:16]} ({Better is} 35... Ra5 $1 $14) 36. g5 {[%emt 0:05:18]} (36. Rxc5 $16 Rxe2 37. Kg3) 36... Rc2 {[%emt 0:00:23]} 37. Re4 {[%emt 0:00:19]} ({White should try} 37. Rxc5 $16 {Strongly threatening e4.} Rxe2 38. Kg3) 37... Kf8 {[%emt 0:01:36]} 38. Kg3 {[%emt 0:00:07]} Ke7 {[%emt 0:00:10]} 39. h4 {[%emt 0:01:05]} Kd6 {[%emt 0:00:15]} (39... Rc1 $11) 40. Rf4 {[%emt 0:00:35]} (40. h5 $1 $14 gxh5 41. Kh4) 40... Ke7 {[%emt 0:00:10]} 41. Re4 {[%emt 0:01:04]} (41. Kf2 $11) 41... Kd6 $14 {[%emt 0:00:12]} 42. h5 $1 {[%emt 0:02:55]} gxh5 {[%emt 0:00:18]} 43. Kh4 {[%emt 0:00:11]} Rc1 {[%emt 0:00:46]} 44. Kxh5 {[%emt 0:00:12] Black must now prevent Kh6.} Rh1+ {[%emt 0:01:02]} 45. Rh4 {[%emt 0:02:44]} Re1 {[%emt 0:00:07]} 46. Kh6 {[%emt 0:06:51]} Rxe2 {[%emt 0:01:28]} 47. Rf4 $1 {[%emt 0:00:28]} Rh2+ {[%emt 0:02:55]} 48. Kg7 {[%emt 0:00:40]} Rg2 $2 {[%emt 0:00:04][%mdl 8192] [#]} (48... Rh5 $16) 49. Rg4 $1 {[%emt 0:01:08] White mates.} Ra2 {[%emt 0:05:15]} 50. Kxf7 {[%emt 0:00:36]} Ke5 {[%emt 0:00:03]} 51. g6 {[%emt 0:07:48]} Ra7+ {[%emt 0:00:07]} 52. Ke8 {[%emt 0:00:10]} ({Less strong is} 52. Kf8 Kf6 53. Ke8 Re7+ 54. Kd8 Rg7 $14) 52... Ra8+ {[%emt 0:00:37] [#]} 53. Kd7 $1 {[%emt 0:00:25]} Ra7+ {[%emt 0:00:05]} 54. Kc6 {[%emt 0:00:09]} Rg7 {[%emt 0:00:05]} 55. Kxc5 {[%emt 0:00:08]} Kf5 {[%emt 0:00:04]} 56. Kb6 {[%emt 0:00:43]} e5 {[%emt 0:00:06]} 57. c5 {[%emt 0:00:09][%cal Bc4c5,Bc5c6][%mdl 32]} e4 {[%emt 0:00:07]} 58. Rxe4 {[%emt 0:00:03]} Rxg6+ {[%emt 0:00:07]} 59. c6 {[%emt 0:00:05] Weighted Error Value: White=0.12 (very precise) /Black=0.25 (precise)} 1-0

[Event "SVK ECo-C Extraliga 2021-22"]
[Site "Slovakia"]
[Date "2022.06.11"]
[Round "10"]
[White "Neugebauer, Martin"]
[Black "Pulpan, Jakub"]
[Result "1-0"]
[ECO "B36"]
[WhiteElo "2505"]
[BlackElo "2418"]
[Annotator "TA"]
[PlyCount "95"]
[EventDate "2021.10.21"]
[EventType "team-tourn"]
[EventCountry "SVK"]
[SourceTitle "playchess.com"]
[Source "ChessBase"]
[SourceQuality "1"]
[TimeControl "40/5400+30:1800+30"]

{[%evp 21,95,55,56,54,59,51,83,75,80,81,79,80,84,77,85,100,91,72,71,50,87,78,124,88,92,58,62,42,62,56,83,37,45,35,31,29,138,141,193,185,421,408,433,427,410,326,314,304,289,279,354,379,372,343,345,384,320,318,347,343,352,339,577,577,684,660,1958,1910,1509,886,1313,1152,1721,1358,12840,10962]} 1. e4 {[%emt 0:00:20]} c5 {[%emt 0:00:41]} 2. Nf3 {[%emt 0:01:13]} Nc6 {[%emt 0:00:39]} 3. d4 {[%emt 0:00:41]} cxd4 {[%emt 0:00:07]} 4. Nxd4 {[%emt 0:00:06]} g6 {[%emt 0:00:36]} 5. c4 {[%emt 0:01:18]} Nf6 {[%emt 0:02:44]} 6. Nc3 {[%emt 0:01:26]} d6 {[%emt 0:01:11]} 7. f3 {[%emt 0:00:59]} Nxd4 {[%emt 0:01:35]} 8. Qxd4 {[%emt 0:00:06]} Bg7 {[%emt 0:00:03]} 9. Be3 {[%emt 0:00:39]} O-O {[%emt 0:01:57]} 10. Qd2 {[%emt 0:01:56]} Be6 {[%emt 0:05:29]} 11. Rc1 {[%emt 0:02:37]} Rc8 {[%emt 0:02:18]} 12. b3 {[%emt 0:03:35] B36: Sicilian: Maroczy Bind: Gurgenidze System.} Nd7 {[%emt 0:07:36]} 13. Be2 {[%emt 0:04:55]} a6 {[%emt 0:01:52][%cal Ob7b5]} 14. O-O {[%emt 0:01:30] White is better.} Kh8 {[%emt 0:06:38]} 15. Nd5 {[%emt 0:03:30] [#]} f5 $146 {[%emt 0:07:02]} ({Predecessor:} 15... f6 16. Qb4 Bxd5 17. cxd5 Rc7 18. g3 Qb8 19. Rxc7 Qxc7 20. Rc1 Qb8 21. f4 Rc8 22. Rxc8+ Qxc8 {½-½ (83) Ochkoos,J (2305)-Ademi,S (2249) Toronto 2006}) 16. exf5 {[%emt 0:02:31] White is more active.} Bxf5 {[%emt 0:05:50]} 17. Rfd1 {[%emt 0:05:45]} Nf6 {[%emt 0:04:32]} 18. Nb6 {[%emt 0:05:34]} Rc6 {[%emt 0:09:00]} 19. Qb4 {[%emt 0:03:02]} Qc7 {[%emt 0:08:17]} 20. a4 {[%emt 0:06:25][%cal Ba2a4,Ba4a5][%mdl 32]} Be6 {[%emt 0:06:13]} 21. a5 {[%emt 0:07:50]} Nd7 {[%emt 0:07:39]} (21... d5 $142) 22. Nd5 {[%emt 0:02:39]} Bxd5 {[%emt 0:00:52]} 23. cxd5 {[%emt 0:01:29]} Rc3 {[%emt 0:02:30]} 24. Bd2 {[%emt 0:06:52][%cal Be3d2,Bd2e1,Be1h4,Bh4e7,Be7c5][%mdl 32]} Rc5 {[%emt 0:06:11]} 25. Kh1 {[%emt 0:06:41]} Nf6 {[%emt 0:09:57] [#]} 26. Rxc5 {[%emt 0:06:32]} (26. Bc4 $1 $16) 26... dxc5 $14 {[%emt 0:00:01]} 27. Qc4 {[%emt 0:00:07]} Rd8 {[%emt 0:00:52]} 28. Be1 {[%emt 0:00:22]} Qd7 {[%emt 0:01:26] Black is on the road to losing.} (28... Ne8 $11 {remains equal.}) 29. Qxc5 $16 {[%emt 0:02:48]} Nxd5 {[%emt 0:00:00]} (29... Qc8 $16 30. Qxc8 (30. Qxe7 Re8 $11) 30... Rxc8) 30. Bh4 $18 {[%emt 0:00:42] And now Bc4 would win.} Qd6 $2 {[%emt 0:01:05] [#]} (30... Bf8 31. Bc4 e6 32. Qd4+ Bg7) 31. Bxe7 $1 {[%emt 0:02:28][%mdl 512]} Qxc5 {[%emt 0:00:09]} 32. Bxc5 {[%emt 0:00:01]} Rd7 {[%emt 0:00:41]} 33. Bc4 {[%emt 0:01:18]} Nb6 {[%emt 0:00:07]} 34. Rxd7 {[%emt 0:02:53]} ({Weaker is} 34. Re1 Nxc4 35. bxc4 (35. Re8+ Bf8 $11) 35... Bc3 $11) 34... Nxd7 {[%emt 0:00:01][%mdl 4096] Endgame KBB-KBN} 35. Bd6 {[%emt 0:00:35] Threatens to win with Bd5.} Ne5 {[%emt 0:00:10]} 36. Bd5 {[%emt 0:11:53]} Nc6 {[%emt 0:00:11]} 37. b4 {[%emt 0:01:58]} Bc3 {[%emt 0:00:57]} 38. b5 {[%emt 0:01:56]} Nxa5 {[%emt 0:01:36]} 39. bxa6 {[%emt 0:00:14]} bxa6 {[%emt 0:00:14]} 40. f4 {[%emt 0:00:38][%cal Bf3f4,Bf4f5][%mdl 32] Hoping for g4.} Kg7 {[%emt 0:00:37]} 41. g4 {[%emt 0:30:38]} h6 $2 {[%emt 0:04:57]} (41... Kf6 {was necessary.} 42. Kg2 g5) 42. Kg2 {[%emt 0:00:00] White is clearly winning.} Kh7 {[%emt 0:07:06]} 43. Kf3 {[%emt 0:00:00]} g5 {[%emt 0:01:55]} 44. f5 {[%emt 0:00:00]} Kg7 {[%emt 0:00:26]} 45. Ke4 {[%emt 0:00:00]} Kh7 {[%emt 0:00:29]} 46. Bc5 {[%emt 0:00:00]} Bf6 {[%emt 0:00:32]} 47. Bb4 {[%emt 0:00:00]} Bd8 {[%emt 0:00:06]} 48. Ke5 {[%emt 0:00:00] Weighted Error Value: White=0.09 (flawless) /Black=0.39} 1-0